{"text_format":"3","workbook":"xlsx","n_sheets":1,"sheets":["Daftar Belanjaan"],"not_rendered":{"images":1,"external_links":1,"defined_names":3},"read":"whole","date_system":"1900"}

{"sheet":"Daftar Belanjaan","index":0,"n_rows":31,"n_cols":8,"rows_kept":31,"merged":[[1,1,1,2]]}
[null,"Daftar Belanjaan"]
[null,"TANGGAL"]
[null,"Selesai?","Item","Kategori","Jumlah","Harga","Harga Tambahan","Merek/Komentar"]
[null,null,"Jeruk","Hasil bumi",null,null,{"$f":"IFERROR(SUM(DaftarBelanja[Jumlah]*DaftarBelanja[Harga]), \"\")","v":{"v":0,"d":"Rp0.00"}}]
[null,null,"Apel","Hasil bumi",null,null,{"$f":"IFERROR(SUM(DaftarBelanja[Jumlah]*DaftarBelanja[Harga]), \"\")","v":{"v":0,"d":"Rp0.00"}}]
[null,null,"Pisang","Hasil bumi",null,null,{"$f":"IFERROR(SUM(DaftarBelanja[Jumlah]*DaftarBelanja[Harga]), \"\")","v":{"v":0,"d":"Rp0.00"}}]
[null,null,"Selada","Hasil bumi",null,null,{"$f":"IFERROR(SUM(DaftarBelanja[Jumlah]*DaftarBelanja[Harga]), \"\")","v":{"v":0,"d":"Rp0.00"}}]
[null,null,"Tomat","Hasil bumi",null,null,{"$f":"IFERROR(SUM(DaftarBelanja[Jumlah]*DaftarBelanja[Harga]), \"\")","v":{"v":0,"d":"Rp0.00"}},"  "]
[null,null,"Susu ","Produk susu",null,null,{"$f":"IFERROR(SUM(DaftarBelanja[Jumlah]*DaftarBelanja[Harga]), \"\")","v":{"v":0,"d":"Rp0.00"}}]
[null,null,"Keju","Produk susu",null,null,{"$f":"IFERROR(SUM(DaftarBelanja[Jumlah]*DaftarBelanja[Harga]), \"\")","v":{"v":0,"d":"Rp0.00"}}]
[null,null,"Telur","Produk susu",null,null,{"$f":"IFERROR(SUM(DaftarBelanja[Jumlah]*DaftarBelanja[Harga]), \"\")","v":{"v":0,"d":"Rp0.00"}}]
[null,null,"Keju lembut","Produk susu",null,null,{"$f":"IFERROR(SUM(DaftarBelanja[Jumlah]*DaftarBelanja[Harga]), \"\")","v":{"v":0,"d":"Rp0.00"}}]
[null,null,"Daging sapi","Daging",null,null,{"$f":"IFERROR(SUM(DaftarBelanja[Jumlah]*DaftarBelanja[Harga]), \"\")","v":{"v":0,"d":"Rp0.00"}}]
[null,null,"Ayam","Daging",null,null,{"$f":"IFERROR(SUM(DaftarBelanja[Jumlah]*DaftarBelanja[Harga]), \"\")","v":{"v":0,"d":"Rp0.00"}}]
[null,null,"Ham","Daging",null,null,{"$f":"IFERROR(SUM(DaftarBelanja[Jumlah]*DaftarBelanja[Harga]), \"\")","v":{"v":0,"d":"Rp0.00"}}]
[null,null,"Jus","Minuman",null,null,{"$f":"IFERROR(SUM(DaftarBelanja[Jumlah]*DaftarBelanja[Harga]), \"\")","v":{"v":0,"d":"Rp0.00"}}]
[null,null,"Kopi","Minuman",null,null,{"$f":"IFERROR(SUM(DaftarBelanja[Jumlah]*DaftarBelanja[Harga]), \"\")","v":{"v":0,"d":"Rp0.00"}}]
[null,null,"Teh","Minuman",null,null,{"$f":"IFERROR(SUM(DaftarBelanja[Jumlah]*DaftarBelanja[Harga]), \"\")","v":{"v":0,"d":"Rp0.00"}}]
[null,null,"Air","Minuman",null,null,{"$f":"IFERROR(SUM(DaftarBelanja[Jumlah]*DaftarBelanja[Harga]), \"\")","v":{"v":0,"d":"Rp0.00"}}]
[null,null,"Mi","Pasta",null,null,{"$f":"IFERROR(SUM(DaftarBelanja[Jumlah]*DaftarBelanja[Harga]), \"\")","v":{"v":0,"d":"Rp0.00"}}]
[null,null,"Beras","Pasta",null,null,{"$f":"IFERROR(SUM(DaftarBelanja[Jumlah]*DaftarBelanja[Harga]), \"\")","v":{"v":0,"d":"Rp0.00"}}]
[null,null,"Makanan kaleng","Sup",null,null,{"$f":"IFERROR(SUM(DaftarBelanja[Jumlah]*DaftarBelanja[Harga]), \"\")","v":{"v":0,"d":"Rp0.00"}}]
[null,null,"Campuran kering","Sup",null,null,{"$f":"IFERROR(SUM(DaftarBelanja[Jumlah]*DaftarBelanja[Harga]), \"\")","v":{"v":0,"d":"Rp0.00"}}]
[null,null,"Roti","Kue",null,null,{"$f":"IFERROR(SUM(DaftarBelanja[Jumlah]*DaftarBelanja[Harga]), \"\")","v":{"v":0,"d":"Rp0.00"}}]
[null,null,"Keripik kentang","Camilan",null,null,{"$f":"IFERROR(SUM(DaftarBelanja[Jumlah]*DaftarBelanja[Harga]), \"\")","v":{"v":0,"d":"Rp0.00"}}]
[null,null,"Pretzel","Camilan",null,null,{"$f":"IFERROR(SUM(DaftarBelanja[Jumlah]*DaftarBelanja[Harga]), \"\")","v":{"v":0,"d":"Rp0.00"}}]
[null,null,"Es krim","Camilan",null,null,{"$f":"IFERROR(SUM(DaftarBelanja[Jumlah]*DaftarBelanja[Harga]), \"\")","v":{"v":0,"d":"Rp0.00"}}]
[null,null,"Kue kering","Camilan",null,null,{"$f":"IFERROR(SUM(DaftarBelanja[Jumlah]*DaftarBelanja[Harga]), \"\")","v":{"v":0,"d":"Rp0.00"}}]
[null,null,"Piring kertas","Persediaan",null,null,{"$f":"IFERROR(SUM(DaftarBelanja[Jumlah]*DaftarBelanja[Harga]), \"\")","v":{"v":0,"d":"Rp0.00"}}]
[null,null,"Lap","Persediaan",null,null,{"$f":"IFERROR(SUM(DaftarBelanja[Jumlah]*DaftarBelanja[Harga]), \"\")","v":{"v":0,"d":"Rp0.00"}}]
[{"$nulls":6},{"$f":"SUBTOTAL(109,DaftarBelanja[Harga Tambahan])","v":{"v":0,"d":"Rp0.00"}}]